[Event "14e Open International de Quenza"]
[Site "Quenza, France"]
[Date "????.??.??"]
[Round "8.3"]
[White "Fressinet, Laurent"]
[Black "Pieri, Pierre-Louis"]
[Result "1-0"]
[TimeControl "5min+3s"]
[WhiteElo "2605"]
[BlackElo "2224"]

1. d4 {[%clk 00:05:03]} {[%emt 00:12:22]} Nf6 {[%clk 00:05:03]} {[%emt
00:00:01]} 2. Nf3 {[%clk 00:05:03]} {[%emt 00:00:01]} d5 {[%clk 00:05:03]}
{[%emt 00:00:04]} 3. c4 {[%clk 00:05:03]} {[%emt 00:00:01]} e6 {[%clk
00:05:02]} {[%emt 00:00:04]} 4. Nc3 {[%clk 00:05:03]} {[%emt 00:00:02]} a6
{[%clk 00:05:02]} {[%emt 00:00:04]} 5. c5 {[%clk 00:04:59]} {[%emt 00:00:07]}
Be7 {[%clk 00:04:45]} {[%emt 00:00:20]} 6. Bf4 {[%clk 00:04:57]} {[%emt
00:00:05]} O-O {[%clk 00:04:40]} {[%emt 00:00:09]} 7. h3 {[%clk 00:04:56]}
{[%emt 00:00:04]} b6 {[%clk 00:04:26]} {[%emt 00:00:17]} 8. cxb6 {[%clk
00:04:56]} {[%emt 00:00:02]} cxb6 {[%clk 00:04:26]} {[%emt 00:00:03]} 9. e3
{[%clk 00:04:55]} {[%emt 00:00:04]} Nc6 {[%clk 00:04:17]} {[%emt 00:00:12]} 10.
Rc1 {[%clk 00:04:50]} {[%emt 00:00:08]} Bd7 {[%clk 00:04:17]} {[%emt 00:00:02]}
11. Bd3 {[%clk 00:04:48]} {[%emt 00:00:04]} Qc8 {[%clk 00:03:36]} {[%emt
00:00:44]} 12. O-O {[%clk 00:04:13]} {[%emt 00:00:38]} Qb7 {[%clk 00:03:36]}
{[%emt 00:00:03]} 13. Qe2 {[%clk 00:03:43]} {[%emt 00:00:33]} Rfc8 {[%clk
00:03:24]} {[%emt 00:00:16]} 14. Ne5 {[%clk 00:03:31]} {[%emt 00:00:15]} Nxe5
{[%clk 00:03:04]} {[%emt 00:00:22]} 15. Bxe5 {[%clk 00:03:22]} {[%emt
00:00:12]} b5 {[%clk 00:02:55]} {[%emt 00:00:12]} 16. a3 {[%clk 00:02:50]}
{[%emt 00:00:36]} g6 {[%clk 00:01:22]} {[%emt 00:01:35]} 17. Qf3 {[%clk
00:02:41]} {[%emt 00:00:12]} Ne8 {[%clk 00:01:08]} {[%emt 00:00:17]} 18. e4
{[%clk 00:02:41]} dxe4 {[%clk 00:01:08]} {[%emt 00:00:04]} 19. Bxe4 {[%clk
00:02:40]} {[%emt 00:00:03]} Bc6 {[%clk 00:00:57]} {[%emt 00:00:14]} 20. d5
{[%clk 00:02:39]} {[%emt 00:00:05]} exd5 {[%clk 00:00:40]} {[%emt 00:00:20]} 21.
Nxd5 {[%clk 00:02:39]} {[%emt 00:00:01]} Bg5 {[%clk 00:00:12]} {[%emt
00:00:31]} 22. Rxc6 {[%clk 00:02:34]} {[%emt 00:00:08]} Rxc6 {[%clk 00:00:12]}
23. Nb4 {[%clk 00:02:33]} {[%emt 00:00:04]} Qe7 {[%clk 00:00:07]} {[%emt
00:00:09]} 24. Nxc6 {[%clk 00:02:29]} {[%emt 00:00:07]} 1-0

[Event "14e Open International de Quenza"]
[Site "Quenza, France"]
[Date "????.??.??"]
[Round "8.4"]
[White "Hou, Yifan"]
[Black "Sumets, Andrey"]
[Result "1-0"]
[TimeControl "5min+3s"]
[WhiteElo "2633"]
[BlackElo "2497"]

1. e4 {[%clk 00:05:03]} {[%emt 00:10:12]} c6 {[%clk 00:05:03]} {[%emt
00:00:03]} 2. Nf3 {[%clk 00:05:00]} {[%emt 00:00:07]} d5 {[%clk 00:05:01]}
{[%emt 00:00:05]} 3. d3 {[%clk 00:05:00]} {[%emt 00:00:01]} dxe4 {[%clk
00:04:57]} {[%emt 00:00:06]} 4. dxe4 {[%clk 00:05:00]} {[%emt 00:00:01]} Qxd1+
{[%clk 00:04:57]} {[%emt 00:00:02]} 5. Kxd1 {[%clk 00:05:00]} {[%emt 00:00:01]}
Nf6 {[%clk 00:04:57]} {[%emt 00:00:01]} 6. Nbd2 {[%clk 00:04:46]} {[%emt
00:00:17]} g6 {[%clk 00:04:38]} {[%emt 00:00:23]} 7. a4 {[%clk 00:04:28]}
{[%emt 00:00:20]} h5 {[%clk 00:04:36]} {[%emt 00:00:04]} 8. Bc4 {[%clk
00:04:28]} {[%emt 00:00:03]} Bh6 {[%clk 00:04:05]} {[%emt 00:00:34]} 9. Ke2
{[%clk 00:04:26]} {[%emt 00:00:05]} Bg4 {[%clk 00:03:53]} {[%emt 00:00:15]} 10.
h3 {[%clk 00:02:23]} {[%emt 00:02:06]} Bxf3+ {[%clk 00:03:53]} {[%emt
00:00:03]} 11. Kxf3 {[%clk 00:02:05]} {[%emt 00:00:21]} Nbd7 {[%clk 00:03:53]}
{[%emt 00:00:03]} 12. Bd3 {[%clk 00:01:57]} {[%emt 00:00:11]} Ne5+ {[%clk
00:03:39]} {[%emt 00:00:16]} 13. Ke2 {[%clk 00:01:57]} {[%emt 00:00:02]} O-O-O
{[%clk 00:03:09]} {[%emt 00:00:33]} 14. Nb3 {[%clk 00:01:57]} {[%emt 00:00:01]}
Bxc1 {[%clk 00:03:06]} {[%emt 00:00:06]} 15. Rhxc1 {[%clk 00:01:57]} {[%emt
00:00:01]} g5 {[%clk 00:02:59]} {[%emt 00:00:10]} 16. a5 {[%clk 00:01:57]}
{[%emt 00:00:01]} h4 {[%clk 00:02:56]} {[%emt 00:00:07]} 17. Ra4 {[%clk
00:01:47]} {[%emt 00:00:13]} Nh5 {[%clk 00:02:54]} {[%emt 00:00:04]} 18. Ke3
{[%clk 00:00:49]} {[%emt 00:01:01]} Nxd3 {[%clk 00:02:47]} {[%emt 00:00:10]} 19.
cxd3 {[%clk 00:00:49]} Nf4 {[%clk 00:02:47]} {[%emt 00:00:01]} 20. d4 {[%clk
00:00:49]} Nxg2+ {[%clk 00:02:40]} {[%emt 00:00:10]} 21. Kf3 {[%clk 00:00:49]}
Nf4 {[%clk 00:02:40]} {[%emt 00:00:01]} 22. a6 {[%clk 00:00:45]} {[%emt
00:00:07]} Rh6 {[%clk 00:02:14]} {[%emt 00:00:29]} 23. axb7+ {[%clk 00:00:45]}
{[%emt 00:00:03]} Kxb7 {[%clk 00:02:14]} 24. Nc5+ {[%clk 00:00:39]} {[%emt
00:00:10]} Kc8 {[%clk 00:01:30]} {[%emt 00:00:47]} 25. Rxa7 {[%clk 00:00:13]}
{[%emt 00:00:29]} Ne6 {[%clk 00:01:19]} {[%emt 00:00:14]} 26. Ra8+ {[%clk
00:00:10]} {[%emt 00:00:07]} Kc7 {[%clk 00:01:19]} 27. Ra7+ {[%clk 00:00:10]}
Kb8 {[%clk 00:00:52]} {[%emt 00:00:30]} 28. Rb7+ {[%clk 00:00:10]} {[%emt
00:00:01]} Kc8 {[%clk 00:00:52]} 29. Rxe7 {[%clk 00:00:10]} {[%emt 00:00:01]}
Nxc5 {[%clk 00:00:37]} {[%emt 00:00:18]} 30. Rxc5 {[%clk 00:00:10]} {[%emt
00:00:01]} Rf6+ {[%clk 00:00:36]} {[%emt 00:00:04]} 31. Ke3 {[%clk 00:00:10]}
{[%emt 00:00:01]} g4 {[%clk 00:00:35]} {[%emt 00:00:04]} 32. hxg4 {[%clk
00:00:10]} Rh8 {[%clk 00:00:35]} 33. Ra5 {[%clk 00:00:10]} {[%emt 00:00:02]}
Kb8 {[%clk 00:00:35]} {[%emt 00:00:01]} 34. Rea7 {[%clk 00:00:06]} {[%emt
00:00:07]} Rfh6 {[%clk 00:00:33]} {[%emt 00:00:04]} 35. Ra8+ {[%clk 00:00:05]}
{[%emt 00:00:04]} Kc7 {[%clk 00:00:30]} {[%emt 00:00:04]} 36. R5a7+ {[%clk
00:00:05]} {[%emt 00:00:02]} Kd6 {[%clk 00:00:26]} {[%emt 00:00:08]} 37. Rxh8
{[%clk 00:00:05]} {[%emt 00:00:03]} Rxh8 {[%clk 00:00:26]} 38. Ra1 {[%clk
00:00:05]} {[%emt 00:00:01]} h3 {[%clk 00:00:17]} {[%emt 00:00:11]} 39. Rh1
{[%clk 00:00:05]} Rb8 {[%clk 00:00:17]} 40. f3 {[%clk 00:00:05]} {[%emt
00:00:04]} Rb3+ {[%clk 00:00:17]} {[%emt 00:00:01]} 41. Kf4 {[%clk 00:00:05]}
Rd3 {[%clk 00:00:17]} {[%emt 00:00:04]} 42. Rxh3 {[%clk 00:00:05]} {[%emt
00:00:02]} Rxd4 {[%clk 00:00:17]} {[%emt 00:00:01]} 43. Rh6+ {[%clk 00:00:05]}
{[%emt 00:00:01]} Kd7 {[%clk 00:00:17]} {[%emt 00:00:01]} 44. Rf6 {[%clk
00:00:05]} {[%emt 00:00:01]} Rb4 {[%clk 00:00:17]} {[%emt 00:00:03]} 45. Rxf7+
{[%emt 00:00:01]} Kd6 46. g5 {[%clk 00:00:05]} {[%emt 00:00:02]} Rxb2 {[%emt
00:00:01]} 47. g6 Rg2 {[%clk 00:00:17]} {[%emt 00:00:01]} 48. Kf5 {[%clk
00:00:05]} c5 {[%clk 00:00:17]} {[%emt 00:00:02]} 49. f4 {[%emt 00:00:02]} c4
{[%emt 00:00:01]} 50. e5+ {[%clk 00:00:05]} Kc6 {[%clk 00:00:17]} {[%emt
00:00:03]} 51. Kf6 {[%clk 00:00:05]} {[%emt 00:00:02]} c3 {[%clk 00:00:17]}
{[%emt 00:00:01]} 52. Rf8 {[%clk 00:00:05]} {[%emt 00:00:01]} Kc7 {[%clk
00:00:17]} {[%emt 00:00:01]} 53. Ra8 {[%clk 00:00:05]} {[%emt 00:00:01]} c2
{[%clk 00:00:11]} {[%emt 00:00:08]} 54. Ra1 {[%clk 00:00:05]} {[%emt 00:00:01]}
Kd7 {[%clk 00:00:11]} {[%emt 00:00:03]} 55. f5 {[%clk 00:00:05]} {[%emt
00:00:02]} Rd2 {[%clk 00:00:11]} {[%emt 00:00:04]} 56. Rc1 {[%clk 00:00:05]}
Ke8 {[%clk 00:00:11]} {[%emt 00:00:02]} 57. Ke6 {[%clk 00:00:05]} {[%emt
00:00:02]} Rg2 {[%clk 00:00:11]} {[%emt 00:00:02]} 58. f6 {[%clk 00:00:05]} Kf8
{[%clk 00:00:10]} {[%emt 00:00:04]} 59. g7+ {[%clk 00:00:05]} Kg8 {[%clk
00:00:10]} 60. Ke7 {[%clk 00:00:05]} Rf2 {[%clk 00:00:08]} {[%emt 00:00:05]} 61.
Rxc2 {[%clk 00:00:05]} {[%emt 00:00:02]} 1-0

[Event "14e Open International de Quenza"]
[Site "Quenza, France"]
[Date "????.??.??"]
[Round "8.5"]
[White "Roux, Baptiste"]
[Black "Johannsdottir, Johanna Bjorg"]
[Result "1-0"]
[TimeControl "5min+3s"]
[WhiteElo "2381"]
[BlackElo "1997"]

1. e4 {[%clk 00:05:03]} {[%emt 00:09:39]} g6 {[%clk 00:05:03]} {[%emt
00:00:02]} 2. d4 {[%clk 00:05:03]} {[%emt 00:00:01]} Bg7 {[%clk 00:05:03]}
{[%emt 00:00:01]} 3. Be3 {[%clk 00:05:03]} {[%emt 00:00:02]} d6 {[%clk
00:05:03]} {[%emt 00:00:01]} 4. h4 {[%clk 00:04:56]} {[%emt 00:00:10]} h5
{[%clk 00:05:03]} {[%emt 00:00:02]} 5. Nh3 {[%clk 00:04:54]} {[%emt 00:00:06]}
a6 {[%clk 00:05:03]} {[%emt 00:00:04]} 6. Ng5 {[%clk 00:04:50]} {[%emt
00:00:07]} Nc6 {[%clk 00:04:42]} {[%emt 00:00:24]} 7. a4 {[%clk 00:04:38]}
{[%emt 00:00:16]} b6 {[%clk 00:04:42]} {[%emt 00:00:01]} 8. f3 {[%clk
00:04:37]} {[%emt 00:00:04]} Nf6 {[%clk 00:04:33]} {[%emt 00:00:12]} 9. d5
{[%clk 00:03:52]} {[%emt 00:00:48]} Ne5 {[%clk 00:04:24]} {[%emt 00:00:11]} 10.
Bd4 {[%clk 00:03:28]} {[%emt 00:00:27]} O-O {[%clk 00:03:47]} {[%emt 00:00:40]}
11. a5 {[%clk 00:03:27]} {[%emt 00:00:05]} bxa5 {[%clk 00:03:40]} {[%emt
00:00:10]} 12. Nc3 {[%clk 00:03:08]} {[%emt 00:00:22]} c5 {[%clk 00:03:34]}
{[%emt 00:00:09]} 13. Bxe5 {[%clk 00:03:07]} {[%emt 00:00:04]} dxe5 {[%clk
00:03:34]} {[%emt 00:00:03]} 14. Qd2 {[%clk 00:02:40]} {[%emt 00:00:30]} Rb8
{[%clk 00:02:43]} {[%emt 00:00:54]} 15. Nd1 {[%clk 00:02:08]} {[%emt 00:00:35]}
Qb6 {[%clk 00:02:39]} {[%emt 00:00:07]} 16. Qxa5 {[%clk 00:01:57]} {[%emt
00:00:14]} Nh7 {[%clk 00:01:21]} {[%emt 00:01:21]} 17. Qxb6 {[%clk 00:01:39]}
{[%emt 00:00:21]} Rxb6 {[%clk 00:01:21]} {[%emt 00:00:01]} 18. Ra5 {[%clk
00:01:38]} {[%emt 00:00:03]} f5 {[%clk 00:01:09]} {[%emt 00:00:15]} 19. Nxh7
{[%clk 00:00:52]} {[%emt 00:00:49]} Kxh7 {[%clk 00:01:09]} 20. Bd3 {[%clk
00:00:46]} {[%emt 00:00:09]} fxe4 {[%clk 00:01:07]} {[%emt 00:00:06]} 21. Bxe4
{[%clk 00:00:44]} {[%emt 00:00:06]} c4 {[%clk 00:00:47]} {[%emt 00:00:23]} 22.
Rc5 {[%clk 00:00:37]} {[%emt 00:00:10]} Bh6 {[%clk 00:00:34]} {[%emt 00:00:16]}
23. Rxc4 {[%clk 00:00:35]} {[%emt 00:00:05]} Bd7 {[%clk 00:00:25]} {[%emt
00:00:12]} 24. Rc7 {[%clk 00:00:33]} {[%emt 00:00:04]} Rd6 {[%clk 00:00:21]}
{[%emt 00:00:07]} 25. c4 {[%clk 00:00:30]} {[%emt 00:00:06]} Rd8 {[%clk
00:00:16]} {[%emt 00:00:08]} 26. c5 {[%clk 00:00:30]} {[%emt 00:00:03]} Rf6
{[%clk 00:00:16]} 27. c6 {[%clk 00:00:29]} {[%emt 00:00:04]} Bc8 {[%clk
00:00:11]} {[%emt 00:00:08]} 28. Rxe7+ {[%clk 00:00:29]} {[%emt 00:00:01]} Kh8
{[%clk 00:00:11]} {[%emt 00:00:01]} 29. Nc3 {[%clk 00:00:29]} {[%emt 00:00:03]}
Bf4 {[%clk 00:00:11]} {[%emt 00:00:02]} 30. Kf2 {[%clk 00:00:27]} {[%emt
00:00:05]} a5 {[%clk 00:00:11]} {[%emt 00:00:03]} 31. Ra1 {[%clk 00:00:27]}
{[%emt 00:00:01]} Ba6 {[%clk 00:00:11]} {[%emt 00:00:02]} 32. Rxa5 {[%clk
00:00:27]} {[%emt 00:00:03]} Bc4 {[%clk 00:00:11]} {[%emt 00:00:01]} 33. Raa7
{[%clk 00:00:22]} {[%emt 00:00:07]} Rb8 {[%clk 00:00:04]} {[%emt 00:00:10]} 34.
Rh7+ {[%clk 00:00:21]} {[%emt 00:00:04]} Kg8 {[%clk 00:00:04]} 35. Rag7+ {[%clk
00:00:21]} {[%emt 00:00:02]} Kf8 {[%clk 00:00:04]} {[%emt 00:00:01]} 36. Rh8+
{[%clk 00:00:21]} Kxg7 {[%clk 00:00:04]} {[%emt 00:00:02]} 37. Rxb8 {[%clk
00:00:21]} {[%emt 00:00:01]} 1-0

[Event "14e Open International de Quenza"]
[Site "Quenza, France"]
[Date "????.??.??"]
[Round "8.6"]
[White "Bellahcene, Bilel"]
[Black "Podvin, Antoine"]
[Result "1-0"]
[TimeControl "5min+3s"]
[WhiteElo "2513"]
[BlackElo "2037"]

1. e4 {[%clk 00:05:03]} {[%emt 00:12:54]} d5 {[%clk 00:05:03]} {[%emt
00:00:03]} 2. exd5 {[%clk 00:05:03]} {[%emt 00:00:01]} Nf6 {[%clk 00:05:03]}
{[%emt 00:00:01]} 3. Nf3 {[%clk 00:05:03]} {[%emt 00:00:02]} Bg4 {[%clk
00:05:03]} {[%emt 00:00:01]} 4. h3 {[%clk 00:05:03]} Bxf3 {[%clk 00:05:03]}
{[%emt 00:00:04]} 5. Qxf3 {[%clk 00:05:03]} Qxd5 {[%clk 00:05:03]} {[%emt
00:00:03]} 6. Qxd5 Nxd5 7. c3 {[%clk 00:05:00]} {[%emt 00:00:02]} e5 {[%clk
00:05:01]} {[%emt 00:00:05]} 8. g3 {[%clk 00:05:00]} {[%emt 00:00:02]} Nc6
{[%clk 00:05:01]} {[%emt 00:00:02]} 9. Bg2 {[%clk 00:05:00]} O-O-O {[%clk
00:05:01]} {[%emt 00:00:04]} 10. b4 {[%clk 00:04:54]} {[%emt 00:00:09]} f5
{[%clk 00:04:50]} {[%emt 00:00:14]} 11. b5 {[%clk 00:04:38]} {[%emt 00:00:20]}
Na5 {[%clk 00:04:33]} {[%emt 00:00:19]} 12. d3 {[%clk 00:04:38]} {[%emt
00:00:02]} Bc5 {[%clk 00:03:40]} {[%emt 00:00:55]} 13. O-O {[%clk 00:04:24]}
{[%emt 00:00:17]} Rd7 {[%clk 00:03:19]} {[%emt 00:00:24]} 14. Re1 {[%clk
00:04:19]} {[%emt 00:00:09]} Nf6 {[%clk 00:02:23]} {[%emt 00:00:58]} 15. Bf1
{[%clk 00:04:17]} {[%emt 00:00:06]} Re8 {[%clk 00:02:15]} {[%emt 00:00:11]} 16.
Nd2 {[%clk 00:04:17]} {[%emt 00:00:03]} e4 {[%clk 00:01:47]} {[%emt 00:00:32]}
17. d4 {[%emt 00:00:06]} Bd6 {[%clk 00:01:44]} 18. Nb3 {[%clk 00:04:16]} {[%emt
00:00:06]} Nxb3 {[%clk 00:01:41]} {[%emt 00:00:05]} 19. axb3 {[%clk 00:04:16]}
{[%emt 00:00:01]} Kb8 {[%clk 00:01:41]} {[%emt 00:00:03]} 20. Bd2 {[%clk
00:03:50]} {[%emt 00:00:29]} h6 {[%clk 00:01:38]} {[%emt 00:00:06]} 21. Ra4
{[%clk 00:03:46]} {[%emt 00:00:08]} c6 {[%clk 00:01:18]} {[%emt 00:00:23]} 22.
Rea1 {[%clk 00:03:46]} {[%emt 00:00:01]} c5 {[%clk 00:00:53]} {[%emt 00:00:29]}
23. Rxa7 {[%clk 00:03:45]} {[%emt 00:00:04]} Kc7 {[%clk 00:00:53]} 24. dxc5
{[%clk 00:03:37]} {[%emt 00:00:12]} Bxc5 {[%clk 00:00:53]} {[%emt 00:00:01]} 25.
Bf4+ {[%clk 00:03:37]} Bd6 {[%clk 00:00:45]} {[%emt 00:00:11]} 26. b6+ {[%clk
00:03:37]} Kc6 {[%clk 00:00:40]} {[%emt 00:00:08]} 27. Be3 {[%clk 00:03:14]}
{[%emt 00:00:26]} Bc5 {[%clk 00:00:40]} {[%emt 00:00:01]} 28. Bxc5 {[%clk
00:03:11]} {[%emt 00:00:06]} Kxc5 {[%clk 00:00:40]} 29. R7a5+ {[%clk 00:03:11]}
{[%emt 00:00:02]} Kxb6 {[%clk 00:00:40]} {[%emt 00:00:03]} 30. Rb5+ {[%clk
00:03:01]} {[%emt 00:00:13]} Kc7 {[%clk 00:00:40]} {[%emt 00:00:02]} 31. Rc5+
{[%clk 00:03:01]} {[%emt 00:00:03]} Kb6 {[%clk 00:00:32]} {[%emt 00:00:11]} 32.
Rxf5 {[%clk 00:03:01]} Rc8 {[%clk 00:00:23]} {[%emt 00:00:11]} 33. Rb5+ {[%clk
00:03:01]} {[%emt 00:00:05]} Kc7 {[%clk 00:00:23]} {[%emt 00:00:01]} 34. c4
{[%clk 00:03:01]} {[%emt 00:00:02]} Rcd8 {[%clk 00:00:22]} {[%emt 00:00:03]} 35.
Rc5+ {[%clk 00:02:52]} {[%emt 00:00:13]} Kb6 {[%clk 00:00:21]} {[%emt
00:00:04]} 36. Re5 {[%clk 00:02:52]} {[%emt 00:00:02]} Rd1 {[%clk 00:00:20]}
{[%emt 00:00:04]} 37. Rxd1 {[%clk 00:02:52]} {[%emt 00:00:02]} Rxd1 {[%clk
00:00:20]} {[%emt 00:00:01]} 38. Kg2 {[%clk 00:02:52]} Rb1 {[%clk 00:00:16]}
{[%emt 00:00:06]} 39. c5+ {[%clk 00:02:52]} Kc6 {[%clk 00:00:16]} {[%emt
00:00:02]} 40. Bc4 {[%clk 00:02:52]} Rb2 {[%clk 00:00:14]} {[%emt 00:00:07]} 41.
g4 {[%clk 00:02:52]} {[%emt 00:00:03]} Nd7 {[%clk 00:00:10]} {[%emt 00:00:05]}
42. Rxe4 {[%clk 00:02:52]} {[%emt 00:00:03]} Nxc5 {[%clk 00:00:10]} {[%emt
00:00:02]} 43. Re3 {[%clk 00:02:52]} {[%emt 00:00:03]} b5 {[%clk 00:00:10]}
{[%emt 00:00:02]} 44. Bf7 {[%clk 00:02:52]} {[%emt 00:00:01]} Kd6 {[%clk
00:00:07]} {[%emt 00:00:06]} 45. h4 {[%clk 00:02:52]} Kc6 {[%clk 00:00:06]}
{[%emt 00:00:05]} 46. g5 {[%clk 00:02:52]} {[%emt 00:00:03]} hxg5 {[%clk
00:00:06]} {[%emt 00:00:01]} 47. hxg5 {[%clk 00:02:52]} Kd6 {[%clk 00:00:06]}
{[%emt 00:00:03]} 48. g6 {[%clk 00:02:52]} {[%emt 00:00:01]} Nd7 {[%clk
00:00:06]} {[%emt 00:00:02]} 49. Kg3 {[%clk 00:02:46]} {[%emt 00:00:09]} Nf6
{[%clk 00:00:05]} {[%emt 00:00:04]} 50. Re6+ {[%clk 00:02:46]} {[%emt
00:00:01]} Kd7 {[%emt 00:00:05]} 51. Rxf6 {[%emt 00:00:03]} 1-0

[Event "14e Open International de Quenza"]
[Site "Quenza, France"]
[Date "????.??.??"]
[Round "8.7"]
[White "Toktomushev, Teimur"]
[Black "Morison, Julien"]
[Result "1-0"]
[TimeControl "5min+3s"]
[WhiteElo "2401"]
[BlackElo "1942"]

1. d4 {[%clk 00:05:03]} Nf6 {[%clk 00:05:03]} {[%emt 00:00:01]} 2. c4 {[%clk
00:05:03]} {[%emt 00:00:01]} g6 {[%clk 00:05:03]} 3. Nc3 {[%clk 00:05:03]}
{[%emt 00:00:02]} d5 {[%clk 00:05:03]} 4. cxd5 {[%clk 00:05:03]} {[%emt
00:00:02]} Nxd5 {[%clk 00:05:03]} 5. e4 {[%clk 00:05:03]} Nxc3 {[%clk
00:05:03]} {[%emt 00:00:01]} 6. bxc3 {[%clk 00:05:03]} c5 {[%clk 00:05:03]}
{[%emt 00:00:01]} 7. Nf3 {[%clk 00:05:03]} {[%emt 00:00:03]} Bg7 {[%clk
00:05:03]} 8. Be3 {[%clk 00:05:03]} {[%emt 00:00:03]} O-O {[%clk 00:05:03]}
{[%emt 00:00:03]} 9. Qd2 {[%clk 00:05:03]} {[%emt 00:00:02]} Qa5 {[%clk
00:05:03]} {[%emt 00:00:04]} 10. Rc1 {[%clk 00:05:02]} {[%emt 00:00:04]} Bg4
{[%clk 00:05:00]} {[%emt 00:00:05]} 11. d5 {[%clk 00:04:43]} {[%emt 00:00:22]}
f5 {[%clk 00:04:44]} {[%emt 00:00:19]} 12. exf5 {[%clk 00:04:04]} {[%emt
00:00:42]} Bxf3 {[%clk 00:04:24]} {[%emt 00:00:23]} 13. gxf3 {[%clk 00:04:04]}
{[%emt 00:00:02]} Rxf5 {[%clk 00:04:24]} {[%emt 00:00:01]} 14. Bh3 {[%clk
00:03:52]} {[%emt 00:00:15]} Rf8 {[%clk 00:04:13]} {[%emt 00:00:14]} 15. Be6+
{[%clk 00:03:52]} {[%emt 00:00:04]} Kh8 {[%clk 00:04:13]} {[%emt 00:00:01]} 16.
h4 {[%clk 00:03:50]} {[%emt 00:00:05]} Rxf3 {[%clk 00:03:34]} {[%emt 00:00:42]}
17. h5 {[%clk 00:03:46]} {[%emt 00:00:06]} g5 {[%clk 00:03:34]} {[%emt
00:00:02]} 18. Ke2 {[%clk 00:03:11]} {[%emt 00:00:38]} Rf8 {[%clk 00:03:11]}
{[%emt 00:00:26]} 19. Bxg5 {[%clk 00:02:46]} {[%emt 00:00:28]} Qa4 {[%clk
00:02:28]} {[%emt 00:00:45]} 20. Rh4 {[%clk 00:02:30]} {[%emt 00:00:20]} Qa6+
{[%clk 00:02:18]} {[%emt 00:00:14]} 21. c4 {[%emt 00:00:08]} Qa3 {[%clk
00:02:07]} {[%emt 00:00:12]} 22. Rh3 {[%clk 00:02:01]} {[%emt 00:00:28]} Qa4
{[%clk 00:01:26]} {[%emt 00:00:44]} 23. Bxe7 {[%clk 00:01:37]} {[%emt
00:00:27]} Na6 {[%clk 00:01:26]} {[%emt 00:00:01]} 24. Rg3 {[%clk 00:00:27]}
{[%emt 00:01:13]} Bd4 {[%clk 00:01:17]} {[%emt 00:00:12]} 25. Rg2 {[%clk
00:00:27]} Qa3 {[%clk 00:01:12]} {[%emt 00:00:09]} 26. h6 {[%clk 00:00:13]}
{[%emt 00:00:17]} Qf3+ {[%emt 00:00:09]} 27. Kf1 {[%emt 00:00:01]} Rf4 {[%clk
00:00:41]} {[%emt 00:00:27]} 28. Qe2 {[%clk 00:00:08]} {[%emt 00:00:09]} Qxe2+
{[%clk 00:00:33]} {[%emt 00:00:11]} 29. Kxe2 {[%clk 00:00:08]} Re8 {[%clk
00:00:33]} {[%emt 00:00:02]} 30. Bg5 {[%clk 00:00:08]} {[%emt 00:00:03]} Rff8
{[%clk 00:00:26]} {[%emt 00:00:09]} 31. Be3 {[%clk 00:00:08]} {[%emt 00:00:01]}
Nc7 {[%clk 00:00:26]} {[%emt 00:00:03]} 32. Bh3 {[%clk 00:00:05]} {[%emt
00:00:05]} Rf6 {[%clk 00:00:24]} {[%emt 00:00:05]} 33. Kd3 {[%clk 00:00:05]}
{[%emt 00:00:04]} Bxe3 {[%clk 00:00:23]} {[%emt 00:00:03]} 34. fxe3 {[%clk
00:00:05]} Rxh6 {[%clk 00:00:23]} {[%emt 00:00:02]} 35. Bf5 {[%clk 00:00:05]}
{[%emt 00:00:01]} Na6 {[%clk 00:00:23]} {[%emt 00:00:01]} 36. a3 {[%clk
00:00:05]} {[%emt 00:00:01]} b5 {[%clk 00:00:23]} {[%emt 00:00:02]} 37. cxb5
{[%clk 00:00:05]} {[%emt 00:00:01]} Nc7 {[%clk 00:00:23]} 38. e4 {[%clk
00:00:05]} {[%emt 00:00:03]} Nxb5 {[%clk 00:00:23]} {[%emt 00:00:01]} 39. Rxc5
{[%clk 00:00:05]} Nd6 {[%clk 00:00:23]} {[%emt 00:00:02]} 40. Be6 {[%clk
00:00:05]} {[%emt 00:00:02]} Rd8 {[%clk 00:00:22]} {[%emt 00:00:05]} 41. Rc6
{[%clk 00:00:05]} {[%emt 00:00:02]} Rh4 {[%clk 00:00:15]} {[%emt 00:00:10]} 42.
Rxd6 {[%clk 00:00:05]} {[%emt 00:00:02]} Rf8 {[%clk 00:00:15]} {[%emt
00:00:03]} 43. Kd4 {[%clk 00:00:05]} {[%emt 00:00:01]} Rh1 {[%clk 00:00:15]}
{[%emt 00:00:01]} 44. Rd7 {[%clk 00:00:05]} {[%emt 00:00:01]} Rd1+ {[%clk
00:00:15]} 45. Ke5 {[%clk 00:00:05]} Rh1 {[%clk 00:00:15]} {[%emt 00:00:03]} 46.
Rdg7 {[%clk 00:00:05]} {[%emt 00:00:01]} Rh5+ {[%clk 00:00:15]} {[%emt
00:00:02]} 47. R7g5 {[%clk 00:00:05]} Rh6 {[%clk 00:00:15]} 48. Rg8+ {[%clk
00:00:05]} {[%emt 00:00:02]} 1-0